bitfinex/quotes_BTCUSD_20240620
["timestamp","ask_amount","ask_price","bid_price","bid_amount"]
[1718890887436,0.00862,65540.0,65534.0,1.84156638]
[1718890888094,0.00862,65540.0,65534.0,2.14675138]
[1718890888624,0.00862,65540.0,65534.0,1.84156638]
[1718890888915,0.2777,65539.0,65534.0,0.86078938]
[1718890889084,0.2777,65539.0,65534.0,0.67494772]
[1718890889085,0.2511,65536.0,65534.0,0.67494772]
[1718890889325,0.2511,65536.0,65534.0,0.6039222]
[1718890889537,0.2511,65536.0,65534.0,0.47712634]
[1718890890135,0.2511,65536.0,65534.0,0.18964462]
[1718890890136,0.10862,65535.0,65534.0,0.18964462]
[1718890890367,0.683854,65535.0,65534.0,0.0370835]
[1718890890525,0.65702,65535.0,65534.0,0.014]
[1718890891419,0.5542,65528.0,65527.0,0.07628172]
[1718890891609,0.6542,65528.0,65527.0,0.07628172]
[1718890894488,0.6542,65528.0,65527.0,0.09028172]
[1718890895333,0.6542,65528.0,65527.0,0.07628172]
[1718890895687,0.6542,65528.0,65527.0,0.09028172]
[1718890896139,0.6542,65528.0,65527.0,0.07628172]
[1718890896689,0.6542,65528.0,65527.0,0.09028172]
[1718890897473,0.6542,65528.0,65527.0,0.09930989]
[1718890897711,0.6342,65528.0,65527.0,0.25187101]
[1718890898121,0.6342,65528.0,65527.0,0.24698863]
[1718890898246,0.6342,65528.0,65527.0,0.25196046]
[1718890898459,0.6542,65528.0,65527.0,0.25196046]
[1718890898654,0.6542,65528.0,65527.0,0.09939934]
[1718890898866,0.6542,65528.0,65527.0,0.07628172]
[1718890899276,0.6642,65528.0,65527.0,0.09028172]
[1718890899480,0.6542,65528.0,65527.0,0.09028172]
[1718890899678,0.6542,65528.0,65527.0,0.07628172]
[1718890899679,0.6642,65528.0,65527.0,0.07628172]
[1718890900145,0.6542,65528.0,65527.0,0.07628172]
[1718890900782,0.6542,65528.0,65527.0,0.09028172]
[1718890901570,0.6542,65528.0,65527.0,0.10428172]
[1718890901771,0.6542,65528.0,65527.0,0.09028172]
[1718890901772,0.6642,65528.0,65527.0,0.09028172]
[1718890902848,0.6642,65528.0,65527.0,0.07628172]
[1718890903058,0.6642,65528.0,65527.0,0.09028172]
[1718890904549,0.6642,65528.0,65527.0,0.07628172]
[1718890904957,0.6642,65528.0,65527.0,0.09028172]
[1718890905346,0.6642,65528.0,65527.0,0.07628172]
[1718890905664,0.6642,65528.0,65527.0,0.09028172]
[1718890906800,0.6542,65528.0,65527.0,0.09028172]
[1718890907030,0.6542,65528.0,65527.0,0.10428172]
[1718890907349,0.6542,65528.0,65527.0,0.25684284]
[1718890907350,0.2565,65528.0,65527.0,0.25684284]
[1718890907492,0.02,65528.0,65527.0,0.24284284]
[1718890907691,0.2545,65534.0,65527.0,0.27624474]
[1718890907910,0.28632,65535.0,65527.0,0.27624474]
[1718890907911,0.00862,65535.0,65528.0,0.15256112]
[1718890908097,0.00862,65535.0,65534.0,0.07628172]
[1718890908325,0.00862,65535.0,65534.0,0.22884284]
[1718890908530,0.00862,65535.0,65534.0,0.23792634]
[1718890908707,0.00862,65535.0,65534.0,0.26171897]
[1718890908909,0.00862,65535.0,65534.0,0.47291897]
[1718890909166,0.00862,65535.0,65531.0,0.1]
[1718890909167,0.00862,65535.0,65531.0,0.001]
[1718890909345,0.00862,65535.0,65528.0,0.1612]
[1718890909346,1.11818103,65530.0,65528.0,0.1612]
[1718890909523,1.11818103,65530.0,65529.0,0.1842]
[1718890909743,1.11818103,65530.0,65529.0,0.5606376]
[1718890911798,1.11818103,65530.0,65529.0,0.5746376]
[1718890912270,1.11818103,65530.0,65529.0,0.8062376]
[1718890912618,1.11818103,65530.0,65529.0,0.8202376]
[1718890912855,1.1181006,65530.0,65529.0,0.8202376]
[1718890914141,1.1181006,65530.0,65529.0,0.8062376]
[1718890914501,1.1181006,65530.0,65529.0,0.8202376]
[1718890914945,1.1181006,65530.0,65529.0,0.8062376]
[1718890915326,1.1181006,65530.0,65529.0,0.8202376]
[1718890915803,1.1181006,65530.0,65529.0,0.97279872]
[1718890916179,1.1181006,65530.0,65529.0,1.47279872]
[1718890916991,1.1181006,65530.0,65529.0,1.48077115]
[1718890917340,1.1181006,65530.0,65529.0,1.65217115]
[1718890917572,1.1181006,65530.0,65529.0,1.66617115]
[1718890917778,1.1181006,65530.0,65529.0,1.68017115]
[1718890918204,1.1181006,65530.0,65529.0,1.43703355]
[1718890918619,1.1181006,65530.0,65529.0,1.45103355]
[1718890919031,1.1181006,65530.0,65529.0,1.43703355]
[1718890919774,1.1181006,65530.0,65529.0,1.77503755]
[1718890920409,1.1181006,65530.0,65529.0,1.43703355]
[1718890920808,1.1181006,65530.0,65529.0,1.60358769]
[1718890920977,1.1181006,65530.0,65529.0,1.58958769]
[1718890921162,1.1181006,65530.0,65529.0,1.57558769]
[1718890921362,0.79701835,65530.0,65529.0,1.57558769]
[1718890921563,0.79701835,65530.0,65529.0,1.58958769]
[1718890922664,0.79701835,65530.0,65529.0,1.57558769]
[1718890923484,0.79701835,65530.0,65529.0,1.57824516]
[1718890923909,0.79701835,65530.0,65529.0,1.59224516]
[1718890924090,0.79701835,65530.0,65529.0,1.57824516]
[1718890924473,0.79701835,65530.0,65529.0,1.60624516]
[1718890924681,0.79701835,65530.0,65529.0,1.20809102]
[1718890925117,0.79701835,65530.0,65529.0,1.20543355]
[1718890925531,1.33961835,65530.0,65529.0,0.18853355]
[1718890925863,1.06191835,65530.0,65529.0,0.18853355]
[1718890926065,1.06191835,65530.0,65529.0,0.18056112]
[1718890926355,1.06191835,65530.0,65529.0,0.3835654]
[1718890926356,0.79701835,65530.0,65529.0,0.3835654]
[1718890926756,0.79701835,65530.0,65529.0,0.39153783]
[1718890926904,0.79701835,65530.0,65529.0,0.3941953]
[1718890927085,0.79701835,65530.0,65529.0,0.4171953]
[1718890927695,0.79701835,65530.0,65529.0,0.4031953]
[1718890927893,0.79701835,65530.0,65529.0,0.40053783]
[1718890928100,0.79701835,65530.0,65529.0,0.41453783]
[1718890928540,0.79701835,65530.0,65529.0,0.40053783]
[1718890928946,0.79701835,65530.0,65529.0,0.41453783]
[1718890929886,0.79701835,65530.0,65529.0,0.40053783]
[1718890930478,0.79701835,65530.0,65529.0,0.55314183]
[1718890930685,0.78801835,65530.0,65529.0,0.55314183]
[1718890931116,0.78801835,65530.0,65529.0,0.53914183]
[1718890931629,0.78801835,65530.0,65529.0,0.40053783]
[1718890932054,0.78801835,65530.0,65529.0,0.53914183]
[1718890932628,0.78801835,65530.0,65529.0,0.55314183]
[1718890932813,0.78801835,65530.0,65529.0,0.87234983]
[1718890933403,0.78801835,65530.0,65529.0,0.9851455]
[1718890933629,0.78801835,65530.0,65529.0,0.85834983]
[1718890933844,0.78801835,65530.0,65529.0,0.55314183]
[1718890933993,0.78801835,65530.0,65529.0,0.56714183]
[1718890934434,0.78801835,65530.0,65529.0,0.40053783]
[1718890934638,0.78801835,65530.0,65529.0,0.38653783]
[1718890934792,0.78801835,65530.0,65529.0,0.40053783]
[1718890935224,0.78801835,65530.0,65529.0,0.17453355]
[1718890935431,0.78801835,65530.0,65529.0,0.00797243]
[1718890935432,1.01001835,65530.0,65529.0,0.00797243]
[1718890935648,1.01001835,65530.0,65521.0,0.000946]
[1718890935649,0.02,65528.0,65521.0,0.000946]
[1718890935839,0.02,65528.0,65521.0,0.15350712]
[1718890936086,0.02,65522.0,65521.0,0.15350712]
[1718890936282,0.02,65526.0,65522.0,0.00800656]
[1718890936511,0.02,65524.0,65521.0,0.15350712]
[1718890937045,0.2,65527.0,65522.0,0.22884284]
[1718890937046,0.1,65527.0,65522.0,0.22884284]
[1718890937526,1.33081835,65530.0,65522.0,0.22884284]
[1718890937527,0.1,65529.0,65522.0,0.39004284]
[1718890937724,0.1,65529.0,65523.0,0.0014276]
[1718890937879,0.1,65529.0,65524.0,0.15256112]
[1718890938082,0.1,65529.0,65525.0,0.05097827]
[1718890938303,0.1,65529.0,65526.0,0.15256112]
[1718890938720,0.1,65529.0,65527.0,0.00798218]
[1718890938926,0.1,65529.0,65528.0,0.15256112]
[1718890939298,0.1,65529.0,65528.0,0.16053843]
[1718890939650,0.1,65529.0,65528.0,0.18089091]
[1718890940221,1.03311835,65530.0,65528.0,0.34209091]
[1718890940222,0.78801835,65530.0,65528.0,0.34209091]
[1718890940422,0.78801835,65530.0,65529.0,0.23748172]
[1718890940622,0.78801835,65530.0,65529.0,0.39801527]
[1718890941421,0.78801835,65530.0,65529.0,0.89801527]
[1718890941627,0.78801835,65530.0,65529.0,0.99555068]
[1718890942894,0.78801835,65530.0,65529.0,1.30055068]
[1718890943083,0.78801835,65530.0,65529.0,1.33755068]
[1718890944714,0.78801835,65530.0,65529.0,1.35155068]
[1718890945195,0.78801835,65530.0,65529.0,1.49015468]
[1718890945941,0.78801835,65530.0,65529.0,1.47615468]
[1718890946310,0.78801835,65530.0,65529.0,1.49015468]
[1718890947046,0.78801835,65530.0,65529.0,1.79536268]
[1718890947285,0.77238084,65530.0,65529.0,1.79536268]
[1718890947427,0.77238084,65530.0,65529.0,1.92216372]
[1718890948443,0.77238084,65530.0,65529.0,2.22737172]
[1718890949098,0.77238084,65530.0,65529.0,2.53257972]
[1718890949099,0.7219242,65530.0,65529.0,2.53257972]
[1718890949291,0.66230908,65530.0,65529.0,2.53257972]
[1718890949497,0.00862,65535.0,65529.0,1.49517972]
[1718890949731,0.00862,65540.0,65539.0,0.81378]
[1718890949864,0.00862,65540.0,65539.0,1.04748276]
[1718890950099,0.00862,65540.0,65539.0,1.07840646]
[1718890950100,0.0067975,65540.0,65539.0,1.07840646]
[1718890950330,0.0067975,65540.0,65539.0,1.65810846]
[1718890950485,0.0067975,65540.0,65539.0,2.78106599]
[1718890950873,0.00656422,65540.0,65539.0,2.78106599]
[1718890951363,0.007891,65546.0,65545.0,0.924032]
[1718890951496,0.00697975,65546.0,65545.0,1.28499312]
[1718890951753,0.00697975,65546.0,65545.0,1.29288759]
[1718890951912,0.00697975,65546.0,65545.0,1.30899195]
[1718890952388,0.00652777,65546.0,65545.0,1.30899195]
[1718890954740,0.00652777,65546.0,65545.0,3.03311784]
[1718890955177,0.00652777,65546.0,65545.0,3.01911784]
[1718890955595,0.00652777,65546.0,65545.0,2.72798484]
[1718890955797,0.00652777,65546.0,65545.0,1.96515284]
[1718890956067,0.00652777,65546.0,65545.0,1.97694595]
[1718890956289,0.00652777,65546.0,65545.0,2.28207895]
[1718890956496,0.00652777,65546.0,65545.0,2.29607895]
[1718890956727,0.00652777,65546.0,65545.0,2.60121195]
[1718890956971,0.00652777,65546.0,65545.0,2.90634495]
[1718890957231,0.00652777,65546.0,65545.0,3.03310754]
[1718890957466,0.00652777,65546.0,65545.0,2.42284154]
[1718890957648,0.00652777,65546.0,65545.0,1.04065559]
[1718890957909,0.00652777,65546.0,65545.0,0.82165559]
[1718890958359,0.00652777,65546.0,65545.0,0.83565559]
[1718890958585,0.00652777,65546.0,65545.0,0.84965559]
[1718890958826,0.3024,65551.0,65545.0,0.83565559]
[1718890958827,0.23920939,65551.0,65545.0,0.83565559]
[1718890959046,2.0,65555.0,65550.0,0.07628172]
[1718890959221,2.0,65555.0,65550.0,0.23748172]
[1718890959478,2.0,65555.0,65551.0,0.00786524]
[1718890959900,2.0,65555.0,65552.0,0.31376112]
[1718890960458,2.0,65555.0,65552.0,0.3527654]
[1718890960660,2.0,65555.0,65553.0,0.010474]
[1718890960859,2.0,65555.0,65554.0,0.15256112]
[1718890961062,2.0,65555.0,65554.0,0.16302862]
[1718890961657,2.5923,65555.0,65554.0,0.22416662]
[1718890961895,2.5923,65555.0,65554.0,0.21369912]
[1718890961896,2.6123,65555.0,65554.0,0.21369912]
[1718890962067,2.7143,65555.0,65554.0,0.16656112]
[1718890962491,2.6143,65555.0,65554.0,0.16656112]
[1718890962718,2.7143,65555.0,65554.0,0.16656112]
[1718890962923,2.6123,65555.0,65554.0,0.15256112]
[1718890963130,2.6143,65555.0,65554.0,0.16656112]
[1718890963983,2.7143,65555.0,65554.0,0.16656112]
[1718890964298,2.6143,65555.0,65554.0,0.16656112]
[1718890964700,2.5923,65555.0,65554.0,0.15256112]
[1718890964903,2.5923,65555.0,65554.0,0.19581723]
[1718890965709,2.5923,65555.0,65554.0,0.18181723]
[1718890966112,2.5923,65555.0,65554.0,0.19581723]
[1718890967315,2.0,65555.0,65554.0,0.19581723]
[1718890969225,2.0,65555.0,65554.0,0.18181723]
[1718890970001,2.0,65555.0,65554.0,0.19581723]
[1718890970207,2.0,65555.0,65554.0,0.35701723]
[1718890970405,2.0,65555.0,65554.0,0.36748473]
[1718890971098,2.0,65555.0,65554.0,0.35348473]
[1718890971582,2.0,65555.0,65554.0,0.46676645]
[1718890972298,2.0,65555.0,65554.0,0.45276645]
[1718890972563,2.0,65555.0,65554.0,0.46676645]
[1718890973004,2.0,65555.0,65554.0,0.45276645]
[1718890974337,2.00086,65555.0,65554.0,0.45276645]
[1718890974518,2.00086,65555.0,65554.0,0.43876645]
[1718890975104,2.00086,65555.0,65554.0,0.45276645]
[1718890976436,2.00086,65555.0,65554.0,0.46676645]
[1718890976990,2.00086,65555.0,65554.0,0.17702862]
[1718890978261,2.00086,65555.0,65554.0,0.16302862]
[1718890978634,2.00086,65555.0,65554.0,0.17702862]
[1718890980333,2.00086,65555.0,65554.0,0.33822862]
[1718890980541,2.00086,65555.0,65554.0,0.36122862]
[1718890981600,2.00086,65555.0,65554.0,0.34722862]
[1718890982032,2.00086,65555.0,65554.0,0.33822862]
[1718890982230,2.00086,65555.0,65554.0,0.36122862]
[1718890982732,2.00086,65555.0,65554.0,0.34722862]
[1718890982899,2.00086,65555.0,65554.0,0.36122862]
[1718890983053,2.00086,65555.0,65554.0,0.69917362]
[1718890983542,2.00086,65555.0,65554.0,0.68517362]
[1718890983942,2.00086,65555.0,65554.0,0.68255675]
[1718890984350,2.00086,65555.0,65554.0,0.69655675]
[1718890984942,2.00086,65555.0,65554.0,0.52777362]
[1718890985103,1.72865566,65555.0,65554.0,0.52777362]
[1718890985485,1.72865566,65555.0,65554.0,0.51377362]
[1718890986355,1.72865566,65555.0,65554.0,1.08326462]
[1718890986558,1.72865566,65555.0,65554.0,1.38835562]
[1718890986807,1.71224352,65555.0,65554.0,2.20884662]
[1718890986977,1.56438014,65555.0,65554.0,2.58874265]
[1718890987185,1.56438014,65555.0,65554.0,2.14558938]
[1718890988392,1.56438014,65555.0,65554.0,2.43668038]
[1718890988547,1.56438014,65555.0,65554.0,2.45068038]
[1718890989095,1.56438014,65555.0,65554.0,2.15509838]
[1718890989436,1.56438014,65555.0,65554.0,2.64558938]
[1718890989815,1.56438014,65555.0,65554.0,1.93542293]
[1718890989965,1.56438014,65555.0,65554.0,2.25451393]
[1718890990171,1.56438014,65555.0,65554.0,1.94942293]
[1718890990393,1.56438014,65555.0,65554.0,2.55960493]
[1718890990918,1.56438014,65555.0,65554.0,2.54560493]
[1718890991120,1.56438014,65555.0,65554.0,2.24051393]
[1718890991482,1.56438014,65555.0,65554.0,2.22651393]
[1718890991701,1.56438014,65555.0,65554.0,2.25451393]
[1718890992448,1.56438014,65555.0,65554.0,2.24051393]
[1718890992622,1.56438014,65555.0,65554.0,2.25451393]
[1718890993429,1.56438014,65555.0,65554.0,2.46296708]
[1718890993634,1.56438014,65555.0,65554.0,2.25451393]
[1718890994151,1.56438014,65555.0,65554.0,2.55960493]
[1718890994308,1.56438014,65555.0,65554.0,2.76805842]
[1718890994514,1.56438014,65555.0,65554.0,2.74972085]
[1718890994717,1.56438014,65555.0,65554.0,3.05481185]
[1718890996358,1.56438014,65555.0,65554.0,3.04081185]
[1718890996566,1.51916814,65555.0,65554.0,3.44590285]
[1718890996775,1.51916814,65555.0,65554.0,3.14081185]
[1718890997066,1.51916814,65555.0,65554.0,4.14590285]
[1718890997325,1.51916814,65555.0,65554.0,3.84081185]
[1718890997534,1.50016814,65555.0,65554.0,3.84081185]
[1718890997682,1.49834684,65555.0,65554.0,3.85481185]
[1718890998589,1.49834684,65555.0,65554.0,2.34182985]
[1718890998848,1.49834684,65555.0,65554.0,2.88410493]
[1718890999050,1.49834684,65555.0,65554.0,2.57901393]
[1718890999384,1.49834684,65555.0,65554.0,0.88852293]
[1718890999586,1.49834684,65555.0,65554.0,1.38852293]
[1718890999793,1.49834684,65555.0,65554.0,1.69361393]
[1718891000015,1.49834684,65555.0,65554.0,1.71661393]
[1718891001623,1.49834684,65555.0,65554.0,2.33970493]
[1718891003007,1.43334684,65555.0,65554.0,2.33970493]
[1718891004850,1.43334684,65555.0,65554.0,1.20247793]
[1718891007553,1.43326824,65555.0,65554.0,1.20247793]
[1718891008419,1.43326824,65555.0,65554.0,1.01707793]
[1718891009199,1.43326824,65555.0,65554.0,1.16962293]
[1718891009399,1.43326824,65555.0,65554.0,1.47471393]
[1718891009600,1.43326824,65555.0,65554.0,1.77980493]
[1718891010427,1.43326824,65555.0,65554.0,1.96520493]
[1718891011084,1.43326824,65555.0,65554.0,1.66011393]
[1718891011487,1.43326824,65555.0,65554.0,2.53210493]
[1718891011706,1.43326824,65555.0,65554.0,2.7222254]
[1718891011913,1.43326824,65555.0,65554.0,3.0273164]
[1718891012117,1.43326824,65555.0,65554.0,2.7222254]
[1718891012342,1.43326824,65555.0,65554.0,2.7405625]
[1718891012746,1.43326824,65555.0,65554.0,2.86731017]
[1718891012949,1.43326824,65555.0,65554.0,2.84897291]
[1718891013387,1.43326824,65555.0,65554.0,3.0273146]
[1718891013991,1.43326824,65555.0,65554.0,2.7222236]
[1718891014122,1.43326824,65555.0,65554.0,2.74056067]
[1718891014331,1.43326824,65555.0,65554.0,2.17366067]
[1718891014730,1.43326824,65555.0,65554.0,1.83845562]
[1718891014947,1.43326824,65555.0,65554.0,1.96520618]
[1718891016110,1.43326824,65555.0,65554.0,2.39169718]
[1718891016311,1.40660208,65555.0,65554.0,3.82759589]
[1718891016483,1.34023871,65555.0,65554.0,3.82759589]
[1718891016643,1.32123871,65555.0,65554.0,3.82759589]
[1718891018927,1.32123871,65555.0,65554.0,3.52250489]
[1718891019158,1.32123871,65555.0,65554.0,1.88417789]
[1718891019359,1.32123871,65555.0,65554.0,1.01241635]
[1718891019600,1.32123871,65555.0,65554.0,0.99146231]
[1718891020119,1.32123871,65555.0,65554.0,1.14662418]
[1718891020780,1.32123871,65555.0,65554.0,1.16962418]
[1718891021216,1.32123871,65555.0,65554.0,1.01707918]
[1718891021628,1.01236293,65555.0,65554.0,1.01707918]
[1718891021844,1.01236293,65555.0,65554.0,1.16962418]
[1718891022229,1.01236293,65555.0,65554.0,1.01707918]
[1718891024635,1.01236293,65555.0,65554.0,1.16962418]
[1718891024867,1.01236293,65555.0,65554.0,1.01707918]
[1718891026263,1.26706293,65555.0,65554.0,0.99407918]
[1718891027771,1.26706293,65555.0,65554.0,1.16962418]
[1718891027772,1.01236293,65555.0,65554.0,1.16962418]
[1718891027941,1.01236293,65555.0,65554.0,1.72541518]
[1718891030890,1.01236293,65555.0,65554.0,2.22062633]
[1718891033604,1.01236293,65555.0,65554.0,3.53080833]
[1718891034374,1.01236293,65555.0,65554.0,3.63080833]
[1718891034576,0.75781598,65555.0,65554.0,3.63080833]
[1718891034790,0.65760906,65555.0,65554.0,3.95380833]
[1718891034985,0.65760906,65555.0,65554.0,4.02236863]
[1718891035441,0.65760906,65555.0,65554.0,3.95380833]
[1718891035649,0.65760906,65555.0,65554.0,3.99955605]
[1718891036457,0.65760906,65555.0,65554.0,3.95380833]
[1718891036812,0.65760906,65555.0,65554.0,3.99955008]
[1718891037014,0.65760906,65555.0,65554.0,3.95380833]
[1718891037212,0.65760906,65555.0,65554.0,3.999544]
[1718891037635,0.65760906,65555.0,65554.0,3.95380833]
[1718891037841,0.63479606,65555.0,65554.0,3.99954422]
[1718891038310,0.63479606,65555.0,65554.0,3.95380833]
[1718891038311,0.58879606,65555.0,65554.0,3.95380833]
[1718891038939,0.58236306,65555.0,65554.0,3.95380833]
[1718891039142,0.52275306,65555.0,65554.0,3.95380833]
[1718891039318,0.5087911,65555.0,65554.0,3.95380833]
[1718891039524,0.5087911,65555.0,65554.0,3.99954422]
[1718891040088,0.5087911,65555.0,65554.0,3.95380833]
[1718891040265,0.4677911,65555.0,65554.0,3.95380833]
[1718891040464,0.4617911,65555.0,65554.0,3.95380833]
[1718891040665,0.4617911,65555.0,65554.0,3.95475433]
[1718891042895,0.4617911,65555.0,65554.0,4.00049022]
[1718891043089,0.4150651,65555.0,65554.0,4.34011272]
[1718891043305,0.00862,65564.0,65563.0,1.728875]
[1718891043506,0.00862,65564.0,65563.0,2.29510683]
[1718891043765,0.00862,65564.0,65563.0,2.3055159]
[1718891044110,0.00862,65564.0,65563.0,2.8757159]
[1718891044286,0.00862,65564.0,65563.0,3.76575644]
[1718891044490,0.00862,65564.0,65563.0,3.57563629]
[1718891045229,0.00862,65564.0,65563.0,3.62025629]
[1718891046535,0.00862,65564.0,65563.0,3.63425629]
[1718891047053,0.00862,65564.0,65563.0,3.63425961]
[1718891047264,0.00862,65564.0,65563.0,2.93425961]
[1718891047881,0.00862,65564.0,65563.0,2.92025961]
[1718891048285,0.00862,65564.0,65563.0,2.93425961]
[1718891048729,0.00862,65564.0,65563.0,2.92025961]
[1718891048948,0.00862,65564.0,65563.0,3.02025961]
[1718891049211,0.00862,65564.0,65563.0,3.03425961]
[1718891049494,0.00862,65564.0,65563.0,3.73425961]
[1718891049693,0.00862,65564.0,65563.0,4.02530961]
[1718891050326,0.00862,65564.0,65563.0,4.33035961]
[1718891051472,0.00862,65564.0,65563.0,3.93750961]
[1718891051656,0.00862,65564.0,65563.0,4.02270734]
[1718891051847,0.00862,65564.0,65563.0,4.34804123]
[1718891052059,0.75929034,65584.0,65583.0,1.423592]
[1718891052060,1.01799034,65584.0,65583.0,1.423592]
[1718891052255,1.01799034,65584.0,65583.0,1.88623187]
[1718891052453,0.5603,65584.0,65583.0,1.88623187]
[1718891053110,0.5603,65584.0,65583.0,1.58127487]
[1718891054741,0.5603,65584.0,65583.0,1.59527487]
[1718891056106,0.5603,65584.0,65583.0,0.37983987]
[1718891056268,0.5803,65584.0,65583.0,0.17684038]
[1718891056471,0.5823,65584.0,65583.0,0.17427056]
[1718891056681,0.6823,65584.0,65583.0,0.17427056]
[1718891057113,0.6823,65584.0,65583.0,0.17684037]
[1718891057745,0.6823,65584.0,65583.0,0.19084037]
[1718891058315,0.6823,65584.0,65583.0,0.01027926]
[1718891058316,0.132,65584.0,65583.0,0.01027926]
[1718891058511,0.122,65584.0,65583.0,0.01027926]
[1718891058717,0.02,65574.0,65569.0,0.07628172]
[1718891059075,0.02,65576.0,65570.0,0.15256112]
[1718891059188,0.394,65578.0,65570.0,0.15256112]
[1718891059391,0.394,65578.0,65577.0,0.07628172]
[1718891059597,0.394,65578.0,65577.0,0.22884284]
[1718891060027,0.394,65578.0,65559.0,0.2607]
[1718891060028,0.4611,65569.0,65554.0,0.04085694]
[1718891060230,0.1228,65560.0,65557.0,0.07628172]
[1718891060745,0.4602,65555.0,65554.0,0.000946]
[1718891060972,0.5622,65555.0,65554.0,0.000946]
[1718891061177,0.4622,65555.0,65554.0,0.000946]
[1718891061330,0.4602,65555.0,65554.0,0.000946]
[1718891061531,0.4402,65555.0,65554.0,0.15350712]
[1718891062598,0.4412,65555.0,65554.0,0.16450712]
[1718891063015,0.4402,65555.0,65554.0,0.15350712]
[1718891063366,0.4602,65555.0,65554.0,0.15350712]
[1718891064216,0.02,65549.0,65548.0,0.13742572]
[1718891064419,0.2448,65549.0,65548.0,0.13742572]
[1718891064595,0.3637,65549.0,65548.0,0.13742572]
[1718891065170,0.3637,65549.0,65548.0,0.07628172]
[1718891065513,0.3647,65549.0,65548.0,0.08728172]
[1718891065718,0.3647,65549.0,65548.0,0.09317272]
[1718891065939,0.3637,65549.0,65548.0,0.08217272]
[1718891066345,0.3647,65549.0,65548.0,0.08628172]
[1718891066686,0.3647,65549.0,65548.0,0.09185149]
[1718891067322,0.40217,65549.0,65548.0,0.09185149]
[1718891067758,0.40217,65549.0,65548.0,0.08628172]
[1718891068165,0.40217,65549.0,65548.0,0.09185149]
[1718891068935,0.3647,65549.0,65548.0,0.09185149]
[1718891070285,0.5647,65549.0,65548.0,0.09185149]
[1718891070830,0.5647,65549.0,65548.0,0.08628172]
[1718891070966,0.5637,65549.0,65548.0,0.07628172]
[1718891071392,0.5647,65549.0,65548.0,0.08628172]
[1718891072103,0.65062,65549.0,65548.0,0.01]
[1718891074178,0.122,65546.0,65545.0,0.000946]
[1718891074389,0.222,65546.0,65545.0,0.000946]
[1718891075336,0.223,65546.0,65545.0,0.009946]
[1718891077402,0.223,65546.0,65545.0,0.023946]
[1718891077403,0.224,65546.0,65545.0,0.023946]
[1718891083211,0.8495,65546.0,65545.0,0.023946]
[1718891083452,1.00206112,65546.0,65545.0,0.023946]
[1718891083627,0.232,65541.0,65540.0,0.0501]
[1718891083842,0.332,65541.0,65540.0,0.0501]
[1718891084088,0.41850611,65541.0,65540.0,0.0501]
[1718891084232,0.332,65541.0,65540.0,0.0501]
[1718891084638,0.48456112,65541.0,65540.0,0.0501]
[1718891085005,0.88216112,65541.0,65540.0,0.0501]
[1718891085561,0.88316112,65541.0,65540.0,0.0581]
[1718891086996,0.99092723,65541.0,65540.0,0.0711]
[1718891087668,0.99092723,65541.0,65540.0,0.0631]
[1718891087669,0.98992723,65541.0,65540.0,0.0631]
[1718891087905,0.99092723,65541.0,65540.0,0.0751]
[1718891088073,0.172,65523.0,65521.0,0.000946]
[1718891088227,0.4565,65523.0,65522.0,0.0819782]
[1718891088437,0.4565,65523.0,65522.0,0.07628172]
[1718891088661,0.232,65522.0,65521.0,0.000946]
[1718891088867,0.37765,65522.0,65521.0,0.000946]
[1718891089040,0.70015,65522.0,65521.0,0.000946]
[1718891089422,0.839,65522.0,65521.0,0.000946]
[1718891090183,0.829,65522.0,65521.0,0.000946]
[1718891090386,0.6445,65522.0,65521.0,0.000946]
[1718891090593,0.4945,65522.0,65521.0,0.000946]
[1718891090802,0.15,65522.0,65521.0,0.000946]
[1718891090960,0.172,65522.0,65521.0,0.000946]
[1718891091365,0.1,65522.0,65521.0,0.000946]
[1718891091566,0.02,65525.0,65521.0,0.28606975]
[1718891091801,0.002,65527.0,65521.0,0.28606975]
[1718891091802,0.02,65526.0,65524.0,0.07628172]
[1718891092001,0.07,65525.0,65524.0,0.07628172]
[1718891092602,0.07,65525.0,65524.0,0.20313041]
[1718891092822,0.02,65525.0,65524.0,0.20313041]
[1718891093042,0.4478,65525.0,65524.0,0.20313041]
[1718891093245,0.6555,65525.0,65524.0,0.12684869]
[1718891093492,0.222,65522.0,65521.0,0.006946]
[1718891093692,0.5165,65522.0,65521.0,0.006946]
[1718891093926,0.6105,65522.0,65521.0,0.006946]
[1718891094329,0.6105,65522.0,65521.0,0.000946]
[1718891095438,0.5165,65522.0,65521.0,0.000946]
[1718891095878,0.5175,65522.0,65521.0,0.000946]
[1718891096304,0.5065,65522.0,65521.0,0.000946]
[1718891097534,0.5075,65522.0,65521.0,0.000946]
[1718891097939,0.5085,65522.0,65521.0,0.001946]
[1718891098361,0.5085,65522.0,65521.0,0.12881691]
[1718891098569,0.274,65522.0,65521.0,0.12881691]
[1718891099201,0.274,65522.0,65521.0,0.13451826]
[1718891099429,0.174,65522.0,65521.0,0.13451826]
[1718891100247,0.102,65522.0,65521.0,0.13451826]
[1718891100444,0.002,65522.0,65521.0,0.44491826]
[1718891100825,0.022,65522.0,65521.0,0.44491826]
[1718891100964,0.002,65522.0,65521.0,0.44491826]
[1718891101355,0.0019213,65522.0,65521.0,0.44491826]
[1718891101739,0.0019213,65522.0,65521.0,0.6535418]
[1718891102151,0.0019213,65522.0,65521.0,0.02600143]
[1718891102352,0.1239213,65522.0,65521.0,0.13449773]
[1718891102585,0.38356343,65522.0,65521.0,0.13449773]
[1718891102733,0.38356343,65522.0,65521.0,0.13451399]
[1718891102933,0.38356343,65522.0,65521.0,0.12881264]
[1718891103138,0.38356343,65522.0,65521.0,0.001946]
[1718891104356,0.37356343,65522.0,65521.0,0.001946]
[1718891104774,0.3339213,65522.0,65521.0,0.001946]
[1718891106142,0.3239213,65522.0,65521.0,0.001946]
[1718891106977,0.3339213,65522.0,65521.0,0.001946]
[1718891107231,0.3239213,65522.0,65521.0,0.001946]
[1718891108219,0.3339213,65522.0,65521.0,0.001946]
[1718891108585,0.42000596,65522.0,65521.0,0.001946]
[1718891108834,0.57256708,65522.0,65521.0,0.001946]
[1718891109104,0.91806708,65522.0,65521.0,0.001946]
[1718891109453,0.89506708,65522.0,65521.0,0.001946]
[1718891109637,1.07956708,65522.0,65521.0,0.001946]
[1718891110115,0.99248242,65522.0,65521.0,0.000946]
[1718891110328,0.99348242,65522.0,65521.0,0.001946]
[1718891110504,0.99256112,65522.0,65521.0,0.001946]
[1718891110664,1.09380976,65522.0,65521.0,0.001946]
[1718891110900,1.09380976,65522.0,65518.0,0.000946]